bitfinex-derivatives/quotes_BNBF0:USTF0_20250331
["timestamp","ask_amount","ask_price","bid_price","bid_amount"]
[1743454899523,0.30331774,606.78,605.13,0.33050749]
[1743454899915,0.30332099,606.77,605.13,0.33050749]
[1743454900120,0.30332099,606.78,605.13,0.33050749]
[1743454900417,0.30332099,606.77,605.13,0.33050749]
[1743454900623,0.30332099,606.78,605.13,0.33050749]
[1743454900821,0.30332099,606.77,605.13,0.33050749]
[1743454901022,0.30332099,606.78,605.13,0.33050749]
[1743454901223,0.30332099,606.77,605.13,0.33050749]
[1743454901425,0.30332099,606.76,605.13,0.33050749]
[1743454901723,0.30332099,606.75,605.13,0.33050749]
[1743454901918,0.30332099,606.74,605.13,0.33050749]
[1743454902121,0.30332099,606.78,605.13,0.33050749]
[1743454902323,0.30332099,606.77,605.13,0.33050749]
[1743454902520,0.30332099,606.81,605.13,0.33050749]
[1743454902718,0.28723655,606.77,605.13,0.33050749]
[1743454902917,0.30332099,606.76,605.13,0.33050749]
[1743454905922,0.30329415,606.75,605.13,0.33050749]
[1743454906124,0.30329415,606.76,605.13,0.33050749]
[1743454906327,0.30329415,606.75,605.13,0.33050749]
[1743454906527,0.30329415,606.76,605.13,0.33050749]
[1743454906722,0.30329415,606.75,605.13,0.33050749]
[1743454907027,0.30329415,606.74,605.13,0.33050749]
[1743454907226,0.30329415,606.73,605.13,0.33050749]
[1743454907427,0.28723655,606.77,605.13,0.33050749]
[1743454907628,0.30329167,606.76,605.13,0.33050749]
[1743454908422,0.30329167,606.75,605.13,0.33050749]
[1743454908627,0.28721165,606.75,605.13,0.33050749]
[1743454908827,0.30329167,606.74,605.13,0.33050749]
[1743454910834,0.28721165,606.75,605.13,0.33050749]
[1743454911028,0.30327749,606.74,605.13,0.33050749]
[1743454911434,0.59049863,606.73,605.14,4.59575084]
[1743454911631,0.30327749,606.72,605.16,0.3304911]
[1743454911833,0.30327749,606.71,605.17,1.90286531]
[1743454912029,0.30327749,606.7,605.18,1.90286531]
[1743454912233,0.30327749,606.69,605.19,1.90286531]
[1743454912428,0.30327749,606.68,605.21,0.3304638]
[1743454912636,0.30327749,606.67,605.22,1.90286531]
[1743454912931,0.30327749,606.66,605.24,0.33044742]
[1743454913128,0.30327749,606.65,605.24,0.33044742]
[1743454913335,0.30327749,606.64,605.24,0.33044742]
[1743454913535,0.30327749,606.72,605.24,0.33044742]
[1743454913735,0.30327749,606.71,605.24,0.33044742]
[1743454913936,0.30327749,606.7,605.24,0.33044742]
[1743454914137,0.30327749,606.69,605.24,0.33044742]
[1743454914336,0.30327749,606.68,605.24,0.33044742]
[1743454914532,0.30327749,606.81,605.24,0.33044742]
[1743454914737,0.28717018,606.68,605.24,0.33044742]
[1743454914931,0.30327749,606.67,605.24,0.33044742]
[1743454915133,0.30327749,606.81,605.24,0.33044742]
[1743454915335,0.30327749,606.8,605.24,0.33044742]
[1743454915534,0.30327749,606.79,605.24,0.33044742]
[1743454915732,0.30327749,606.78,605.24,0.33044742]
[1743454915936,0.30327749,606.77,605.24,0.33044742]
[1743454916137,0.28716307,606.79,605.24,0.33044742]
[1743454916138,0.30327749,606.76,605.24,0.33044742]
[1743454916440,0.30327749,606.75,605.24,0.33044742]
[1743454916639,0.30327749,606.74,605.24,0.33044742]
[1743454916839,0.30327749,606.73,605.24,0.33044742]
[1743454917034,0.30327749,606.72,605.24,0.33044742]
[1743454917237,0.30327749,606.71,605.24,0.33044742]
[1743454917438,0.30327749,606.81,605.24,0.33044742]
[1743454917635,0.28716188,606.71,605.24,0.33044742]
[1743454917939,0.30328553,606.7,605.24,0.33044742]
[1743454918140,0.30328553,606.81,605.24,0.33044742]
[1743454918337,0.30328553,606.8,605.24,0.33044742]
[1743454918541,1.268,606.82,605.24,0.33044742]
[1743454918743,0.28715714,606.8,605.24,0.33044742]
[1743454919545,0.30328392,606.79,605.24,0.33044742]
[1743454920046,0.30328392,606.78,605.24,0.33044742]
[1743454920240,0.30328392,606.77,605.24,2.23331273]
[1743454920445,0.30328392,606.76,605.24,0.33044742]
[1743454920748,0.30328392,606.75,605.24,0.33044742]
[1743454921048,0.30328392,606.74,605.25,2.69288553]
[1743454921248,0.30328392,606.73,605.27,0.33043104]
[1743454921447,0.30328392,606.72,605.27,2.23329635]
[1743454921644,0.30328392,606.71,605.27,0.33043104]
[1743454921843,0.30328392,606.7,605.27,0.33043104]
[1743454922045,0.30328392,606.76,605.27,0.33043104]
[1743454922247,0.30328392,606.75,605.27,0.33043104]
[1743454922447,0.30328392,606.74,605.27,0.33043104]
[1743454922644,0.30328392,606.73,605.27,0.33043104]
[1743454922849,0.30328392,606.72,605.27,0.33043104]
[1743454923050,0.30328392,606.71,605.28,1.90286531]
[1743454923247,0.30328392,606.71,605.27,0.33043104]
[1743454923248,0.30328392,606.7,605.3,0.33041467]
[1743454923448,0.30328392,606.69,605.31,1.90286531]
[1743454923644,0.30328392,606.68,605.32,2.69288553]
[1743454923850,0.30328392,606.67,605.33,0.33039829]
[1743454924046,0.30328392,606.66,605.33,0.33039829]
[1743454924249,0.28716899,606.69,605.33,0.33039829]
[1743454924250,0.30328392,606.65,605.33,0.33039829]
[1743454924451,0.30328392,606.64,605.33,3.02328382]
[1743454924752,0.30328392,606.63,605.33,3.02328382]
[1743454924950,0.30328392,606.62,605.33,3.02328382]
[1743454925147,0.30328392,606.61,605.33,3.02328382]
[1743454925350,0.30328392,606.68,605.33,3.02328382]
[1743454925551,0.30328392,606.67,605.33,3.02328382]
[1743454925750,0.30328392,606.66,605.33,3.02328382]
[1743454925947,0.30328392,606.65,605.33,0.33039829]
[1743454926254,0.30328392,606.64,605.33,0.33039829]
[1743454926447,0.30328392,606.63,605.33,0.33039829]
[1743454926648,0.30328392,606.62,605.33,0.33039829]
[1743454926851,0.30328392,606.63,605.33,0.33039829]
[1743454927051,0.30328392,606.62,605.33,0.33039829]
[1743454927248,0.30328392,606.61,605.33,0.33039829]
[1743454927453,0.30328392,606.6,605.33,0.33039829]
[1743454927652,0.30328392,606.63,605.33,0.33039829]
[1743454927847,0.30330532,606.62,605.33,0.33039829]
[1743454928049,0.30330532,606.61,605.33,0.33039829]
[1743454928253,0.30330532,606.6,605.33,0.33039829]
[1743454928453,0.30330532,606.63,605.33,0.33039829]
[1743454928651,0.30330532,606.62,605.33,0.33039829]
[1743454928847,0.28720336,606.64,605.33,0.33039829]
[1743454928848,0.30330532,606.63,605.33,0.33039829]
[1743454929054,0.30330532,606.62,605.33,0.33039829]
[1743454929255,0.30330532,606.63,605.33,0.33039829]
[1743454929458,0.59050275,606.62,605.33,0.33039829]
[1743454929757,0.30330532,606.61,605.33,0.33039829]
[1743454929954,0.30330532,606.61,605.34,1.90286531]
[1743454930150,0.30330532,606.61,605.36,0.33038192]
[1743454930657,0.30330532,606.61,605.37,1.90286531]
[1743454930858,0.30330532,606.61,605.39,0.33036554]
[1743454931051,0.30330532,606.61,605.4,4.59575084]
[1743454931253,0.30330532,606.61,605.42,0.33034917]
[1743454931450,0.30330532,606.6,605.43,1.90286531]
[1743454931653,0.30330532,606.59,605.45,0.33033281]
[1743454931856,0.30330532,606.61,605.46,1.90286531]
[1743454932056,0.30330532,606.6,605.48,0.33031644]
[1743454932254,0.30330532,606.61,605.49,4.59575084]
[1743454932449,1.268,606.82,605.5,2.23317084]
[1743454932647,0.28715477,606.59,605.51,2.23316538]
[1743454932850,0.30328401,606.58,605.52,2.23315993]
[1743454933049,0.30328401,606.81,605.53,2.23315447]
[1743454933249,0.28712753,606.58,605.54,0.33028371]
[1743454933451,0.30328401,606.57,605.54,2.23314902]
[1743454933656,0.30328401,606.56,605.55,2.69288553]
[1743454933851,0.30328401,606.55,605.55,2.69288553]
[1743454934050,0.30328401,606.55,605.55,4.59575084]
[1743454934252,0.30328401,606.54,605.56,1.90286531]
[1743454934450,0.30328401,606.53,605.55,2.69288553]
[1743454934650,0.30328401,606.52,605.55,2.69288553]
[1743454934859,0.30328401,606.51,605.55,2.69288553]
[1743454935058,0.30328401,606.5,605.55,2.69288553]
[1743454935253,0.30328401,606.56,605.54,0.33028371]
[1743454935452,0.30328401,606.55,605.54,0.33028371]
[1743454935651,0.30328401,606.56,605.54,0.33028371]
[1743454935852,0.30328401,606.55,605.54,0.33028371]
[1743454936158,0.30328401,606.54,605.54,0.33028371]
[1743454936353,0.30328401,606.53,605.54,0.33028371]
[1743454936551,0.28712634,606.57,605.54,0.33028371]
[1743454936552,0.30328401,606.56,605.54,0.33028371]
[1743454936754,0.30328401,606.55,605.54,0.33028371]
[1743454936954,0.30328401,606.56,605.54,0.33028371]
[1743454937159,0.30328401,606.55,605.54,0.33028371]
[1743454937360,0.30328401,606.56,605.54,0.33028371]
[1743454937553,0.30328401,606.55,605.54,0.33028371]
[1743454937758,0.30328401,606.54,605.54,0.33028371]
[1743454937956,0.28712634,606.57,605.54,0.33028371]
[1743454937957,0.30328401,606.56,605.54,0.33028371]
[1743454938153,0.30328401,606.55,605.54,0.33028371]
[1743454938359,0.30328401,606.8,605.54,0.33028371]
[1743454938558,0.30328401,606.79,605.54,0.33028371]
[1743454938754,0.28714648,606.54,605.54,0.33028371]
[1743454938956,0.30328401,606.53,605.54,0.33028371]
[1743454939260,0.30328401,606.52,605.54,0.33028371]
[1743454941353,0.30328401,606.88,605.54,0.33028371]
[1743454941557,0.30328401,606.87,605.54,0.33028371]
[1743454941760,0.28714885,606.51,605.54,0.33028371]
[1743454941959,0.30328401,606.5,605.54,0.33028371]
[1743454942159,0.30328401,606.86,605.54,0.33028371]
[1743454942362,0.28714885,606.5,605.54,0.33028371]
[1743454942560,0.30328401,606.49,605.54,0.33028371]
[1743454942863,0.30328401,606.48,605.54,0.33028371]
[1743454943758,0.28715004,606.49,605.54,0.33028371]
[1743454943962,0.30328547,606.48,605.54,0.33028371]
[1743454945462,0.30328637,606.47,605.54,0.33028371]
[1743454945759,0.30328637,606.46,605.54,0.33028371]
[1743454945954,0.30328637,606.48,605.54,0.33028371]
[1743454946161,0.30328637,606.47,605.54,0.33028371]
[1743454946357,0.30328637,606.48,605.54,0.33028371]
[1743454946563,0.30328637,606.47,605.54,0.33028371]
[1743454946760,0.30328637,606.46,605.54,0.33028371]
[1743454947064,0.30328637,606.45,605.54,0.33028371]
[1743454947263,0.30328637,606.44,605.54,0.33028371]
[1743454947457,0.30328637,606.43,605.54,0.33028371]
[1743454947662,0.30328637,606.42,605.54,0.33028371]
[1743454947863,0.30328637,606.43,605.54,0.33028371]
[1743454948061,0.30328637,606.42,605.54,0.33028371]
[1743454948263,0.30328637,606.43,605.54,0.33028371]
[1743454948565,0.30328637,606.41,605.54,0.33028371]
[1743454948864,0.28720573,606.44,605.54,0.33028371]
[1743454948865,0.30328637,606.4,605.54,0.33028371]
[1743454949062,0.30328637,606.39,605.54,0.33028371]
[1743454949262,0.30328637,606.43,605.54,0.33028371]
[1743454949461,0.30328637,606.42,605.54,0.33028371]
[1743454949659,0.30328637,606.43,605.54,0.33028371]
[1743454949863,0.30328637,606.42,605.54,0.33028371]
[1743454950065,0.30328637,606.43,605.54,0.33028371]
[1743454950265,0.30327926,606.42,605.54,0.33028371]
[1743454950459,0.30327926,606.41,605.54,0.33028371]
[1743454950663,0.28719625,606.42,605.54,0.33028371]
[1743454950864,0.30327926,606.41,605.54,0.33028371]
[1743454951768,0.28719625,606.42,605.54,0.33028371]
[1743454952067,0.30327723,606.41,605.54,0.33028371]
[1743454953564,0.59048177,606.4,605.54,0.33028371]
[1743454953771,0.30327723,606.39,605.54,0.33028371]
[1743454956371,1.415,606.87,605.54,0.33028371]
[1743454956372,0.30327723,606.38,605.54,0.33028371]
[1743454956564,0.30327723,606.86,605.54,0.33028371]
[1743454956770,0.28714411,606.4,605.54,0.33028371]
[1743454956970,0.30327723,606.39,605.54,0.33028371]
[1743454957171,0.30327723,606.86,605.54,0.33028371]
[1743454957367,0.28713937,606.4,605.54,0.33028371]
[1743454957567,1.415,606.87,605.54,0.33028371]
[1743454957872,0.28713227,606.43,605.54,0.33028371]
[1743454958273,1.415,606.87,605.54,0.33028371]
[1743454958465,0.28714767,606.48,605.54,0.33028371]
[1743454958872,1.415,606.87,605.54,0.33028371]
[1743454959067,0.30324482,606.86,605.54,0.33028371]
[1743454959277,0.28714411,606.48,605.54,0.33028371]
[1743454959570,1.415,606.87,605.54,0.33028371]
[1743454959773,0.30323676,606.86,605.54,0.33028371]
[1743454959975,0.28714174,606.48,605.54,0.33028371]
[1743454960176,1.415,606.87,605.54,0.33028371]
[1743454960368,0.30324842,606.86,605.54,0.33028371]
[1743454960572,0.28715596,606.47,605.54,0.33028371]
[1743454960769,0.30324842,606.46,605.54,0.33028371]
[1743454961077,0.30324842,606.45,605.54,0.33028371]
[1743454961469,0.28715477,606.46,605.54,0.33028371]
[1743454961775,0.30327958,606.45,605.54,0.33028371]
[1743454962374,0.30327958,606.86,605.54,0.33028371]
[1743454962576,0.28719388,606.44,605.54,0.33028371]
[1743454962776,0.30327958,606.43,605.54,0.33028371]
[1743454962976,0.30327958,606.86,605.54,0.33028371]
[1743454963176,0.30327958,606.85,605.54,0.33028371]
[1743454963477,0.30327958,606.84,605.54,0.33028371]
[1743454963777,0.30327958,606.83,605.54,0.33028371]
[1743454963969,0.30327958,606.82,605.54,0.33028371]
[1743454964171,0.30327958,606.81,605.54,0.33028371]
[1743454964477,0.30327958,606.8,605.54,0.33028371]
[1743454964778,0.30327958,606.79,605.54,0.33028371]
[1743454964979,0.30327958,606.78,605.54,0.33028371]
[1743454965173,0.30327958,606.77,605.54,0.33028371]
[1743454965372,0.30327958,606.76,605.54,0.33028371]
[1743454965575,0.30327958,606.75,605.54,0.33028371]
[1743454965775,0.30327958,606.74,605.54,0.33028371]
[1743454965978,0.30327958,606.73,605.54,0.33028371]
[1743454966278,0.30327958,606.72,605.54,0.33028371]
[1743454966479,0.30327958,606.76,605.54,0.33028371]
[1743454966676,0.30327958,606.75,605.54,0.33028371]
[1743454967078,0.28713464,606.77,605.54,0.33028371]
[1743454967079,0.30327958,606.74,605.54,0.33028371]
[1743454967279,0.30327958,606.73,605.54,0.33028371]
[1743454967476,0.30327958,606.72,605.54,0.33028371]
[1743454967677,0.30327958,606.71,605.54,0.33028371]
[1743454967878,0.30327958,606.76,605.54,0.33028371]
[1743454968588,0.30327958,606.75,605.54,0.33028371]
[1743454968790,0.28717255,606.75,605.54,0.33028371]
[1743454969083,0.30327958,606.74,605.54,0.33028371]
[1743454971276,0.30327958,606.86,605.54,0.33028371]
[1743454971480,0.28722943,606.73,605.54,0.33028371]
[1743454971685,0.30327958,606.72,605.54,0.33028371]
[1743454971983,0.30327958,606.71,605.54,0.33028371]
[1743454974383,0.30327958,606.86,605.54,0.33028371]
[1743454974784,0.28721402,606.7,605.54,0.33028371]
[1743454974984,0.30327958,606.69,605.54,0.33028371]
[1743454975184,0.30327958,606.86,605.54,0.33028371]
[1743454975386,0.28719743,606.69,605.54,0.33028371]
[1743454975586,1.415,606.87,605.54,0.33028371]
[1743454975888,0.28719625,606.68,605.54,0.33028371]
[1743454976294,1.415,606.87,605.54,0.33028371]
[1743454976489,0.28719625,606.67,605.54,0.33028371]
[1743454976893,1.415,606.87,605.54,0.33028371]
[1743454977196,0.28719625,606.66,605.54,0.33028371]
[1743454977393,1.415,606.87,605.54,0.33028371]
[1743454977590,0.3032363,606.86,605.54,0.33028371]
[1743454977789,0.28719506,606.65,605.54,0.33028371]
[1743454978193,1.415,606.87,605.54,0.33028371]
[1743454978392,0.28726618,606.64,605.54,0.33028371]
[1743454978694,1.415,606.87,605.54,0.33028371]
[1743454978897,0.30322917,606.86,605.54,0.33028371]
[1743454979095,0.28726618,606.63,605.54,0.33028371]
[1743454979295,1.415,606.87,605.54,0.33028371]
[1743454979595,0.28726618,606.62,605.54,0.33028371]
[1743454979993,1.415,606.87,605.54,0.33028371]
[1743454980392,0.287265,606.61,605.54,0.33028371]
[1743454980590,1.415,606.87,605.54,0.33028371]
[1743454980795,0.30323057,606.86,605.54,0.33028371]
[1743454980996,0.28725788,606.6,605.54,0.33028371]
[1743454981191,1.415,606.87,605.54,0.33028371]
[1743454981392,0.30323327,606.86,605.54,0.33028371]
[1743454981589,0.28725788,606.59,605.54,0.33028371]
[1743454981791,1.415,606.87,605.54,0.33028371]
[1743454981990,0.30323122,606.86,605.54,0.33028371]
[1743454982191,0.28725788,606.58,605.54,0.33028371]
[1743454982391,1.415,606.87,605.54,0.33028371]
[1743454982597,0.30323353,606.86,605.54,0.33028371]
[1743454982797,0.28725907,606.57,605.54,0.33028371]
[1743454982993,1.415,606.87,605.54,0.33028371]
[1743454983194,0.30323073,606.86,605.54,0.33028371]
[1743454983393,0.28725907,606.56,605.54,0.33028371]
[1743454983593,1.415,606.87,605.54,0.33028371]
[1743454983797,0.30323294,606.86,605.54,0.33028371]
[1743454983998,0.28725907,606.55,605.54,0.33028371]
[1743454984198,1.415,606.87,605.54,0.33028371]
[1743454984399,0.30323073,606.86,605.54,0.33028371]
[1743454984598,0.28725907,606.54,605.54,0.33028371]
[1743454984801,1.415,606.87,605.54,0.33028371]
[1743454984997,0.30323058,606.86,605.54,0.33028371]
[1743454985198,0.28725907,606.53,605.54,0.33028371]
[1743454985602,1.415,606.87,605.54,0.33028371]
[1743454985799,0.28726144,606.52,605.54,0.33028371]
[1743454986300,1.415,606.87,605.54,0.33028371]
[1743454986498,0.28725788,606.51,605.54,0.33028371]
[1743454986703,1.415,606.87,605.54,0.33028371]
[1743454986900,0.30323251,606.86,605.54,0.33028371]
[1743454987205,0.28725433,606.5,605.54,0.33028371]
[1743454987503,1.415,606.87,605.54,0.33028371]
[1743454987698,0.28721876,606.49,605.54,0.33028371]
[1743454987902,1.415,606.87,605.54,0.33028371]
[1743454988204,0.28721639,606.48,605.54,0.33028371]
[1743454988503,1.415,606.87,605.54,0.33028371]
[1743454988704,0.30323295,606.86,605.54,0.33028371]
[1743454988906,0.28719388,606.47,605.54,0.33028371]
[1743454989197,1.415,606.87,605.54,0.33028371]
[1743454989398,0.30323283,606.86,605.54,0.33028371]
[1743454989598,0.28719032,606.47,605.54,0.33028371]
[1743454989804,1.415,606.87,605.54,0.33028371]
[1743454990203,0.28718677,606.47,605.54,0.33028371]
[1743454990404,1.415,606.87,605.54,0.33028371]
[1743454990604,0.30323928,606.86,605.54,0.33028371]
[1743454990810,0.28718321,606.47,605.54,0.33028371]
[1743454991002,1.415,606.87,605.54,0.33028371]
[1743454991199,0.3032372,606.86,605.54,0.33028371]
[1743454991405,0.28717966,606.47,605.54,0.33028371]
[1743454991605,1.415,606.87,605.54,0.33028371]
[1743454991805,0.30323761,606.86,605.54,0.33028371]
[1743454991999,0.2871761,606.47,605.54,0.33028371]
[1743454992203,1.415,606.87,605.54,0.33028371]
[1743454992499,0.28717255,606.47,605.54,0.33028371]
[1743454992909,1.415,606.87,605.54,0.33028371]
[1743454993105,0.28717966,606.46,605.54,0.33028371]
[1743454993506,1.415,606.87,605.54,0.33028371]
[1743454993707,0.2871761,606.45,605.54,0.33028371]
[1743454994007,0.32954901,606.89,605.54,0.33028371]
[1743454994202,0.30325613,606.88,605.54,0.33028371]
[1743454994706,0.59038247,606.88,605.54,0.33028371]
[1743454994902,0.30325613,606.87,605.54,0.33028371]
[1743454995503,0.59041209,606.86,605.54,0.33028371]
[1743454995808,0.30325613,606.85,605.54,0.33028371]
[1743454996503,1.254,606.84,605.54,0.33028371]
[1743454996706,0.30325613,606.83,605.54,0.33028371]
[1743454998708,0.28713937,606.82,605.54,0.33028371]
[1743454998909,0.30325613,606.81,605.54,0.33028371]
[1743454999703,0.28713937,606.82,605.54,0.33028371]
[1743454999903,0.30323816,606.81,605.54,0.33028371]
[1743455000304,0.30323816,606.8,605.54,0.33028371]
[1743455000509,0.30323816,606.79,605.54,0.33028371]
[1743455000707,0.30323816,606.78,605.54,0.33028371]
[1743455000910,0.30323816,606.77,605.54,0.33028371]
[1743455001108,0.28713937,606.82,605.54,0.33028371]
[1743455001109,0.30323816,606.76,605.54,0.33028371]
[1743455001614,0.30323816,606.75,605.54,0.33028371]
[1743455001907,0.30323816,606.74,605.54,0.33028371]
[1743455002112,0.30323816,606.81,605.54,0.33028371]
[1743455002412,0.30323816,606.8,605.54,0.33028371]
[1743455002614,0.30323816,606.79,605.54,0.33028371]
[1743455002811,0.30323816,606.81,605.54,0.33028371]
[1743455003113,0.30323816,606.8,605.54,0.33028371]
[1743455003314,0.30323816,606.79,605.54,0.33028371]
[1743455003612,0.30323816,606.78,605.54,0.33028371]
[1743455003811,0.30323816,606.81,605.54,0.33028371]
[1743455004113,0.30323816,606.8,605.54,0.33028371]
[1743455004314,0.30323816,606.79,605.54,0.33028371]
[1743455004508,0.28713937,606.82,605.54,0.33028371]
[1743455004708,0.30325821,606.81,605.54,0.33028371]
[1743455005009,0.30325821,606.8,605.54,0.33028371]
[1743455005213,0.30325821,606.79,605.54,0.33028371]
[1743455005414,0.30325821,606.78,605.54,0.33028371]
[1743455005714,0.30325821,606.77,605.54,0.33028371]
[1743455005909,0.30325821,606.76,605.54,0.33028371]
[1743455006114,0.30325793,606.75,605.54,0.33028371]
[1743455006415,0.30325793,606.74,605.54,0.33028371]
[1743455006615,0.30325793,606.73,605.54,0.33028371]
[1743455006812,0.30325793,606.81,605.54,0.33028371]
[1743455007013,0.30325793,606.8,605.54,0.33028371]
[1743455007214,0.30325793,606.79,605.54,0.33028371]
[1743455007415,0.30325793,606.78,605.54,0.33028371]
[1743455007617,0.30325793,606.77,605.54,0.33028371]
[1743455007818,0.28712634,606.78,605.54,0.33028371]
[1743455008018,0.30325776,606.77,605.54,0.33028371]
[1743455008219,0.30325776,606.76,605.54,0.33028371]
[1743455008418,0.30325776,606.77,605.54,0.33028371]
[1743455008611,0.30325776,606.76,605.54,0.33028371]
[1743455008816,0.30325776,606.75,605.54,0.33028371]
[1743455009018,0.30325776,606.77,605.54,0.33028371]
[1743455009218,0.28712634,606.78,605.54,0.33028371]
[1743455009519,0.30325793,606.77,605.54,0.33028371]
[1743455010514,0.59045536,606.76,605.54,0.33028371]
[1743455010714,0.30325793,606.75,605.54,0.33028371]
[1743455010918,0.30330927,606.74,605.54,0.33028371]
[1743455011113,0.30330927,606.73,605.54,0.33028371]
[1743455011312,0.30330927,606.75,605.54,0.33028371]
[1743455011516,0.30330927,606.74,605.54,0.33028371]
[1743455011813,0.30330927,606.73,605.54,0.33028371]
[1743455012018,0.30330927,606.75,605.54,0.33028371]
[1743455012213,0.30330927,606.74,605.54,0.33028371]
[1743455012413,0.28719743,606.76,605.54,0.33028371]
[1743455012612,0.30331537,606.75,605.54,0.33028371]
[1743455014121,0.30332109,606.74,605.54,0.33028371]
[1743455014315,0.30332109,606.75,605.54,0.33028371]
[1743455014521,0.30332109,606.74,605.54,0.33028371]
[1743455014718,0.30332109,606.73,605.54,0.33028371]
[1743455014917,0.30332109,606.72,605.54,0.33028371]
[1743455015122,0.30332109,606.71,605.54,0.33028371]
[1743455015322,0.30332109,606.7,605.54,0.33028371]
[1743455015524,0.30332109,606.75,605.54,0.33028371]
[1743455015717,0.30332109,606.74,605.54,0.33028371]
[1743455015922,0.30332109,606.73,605.54,0.33028371]
[1743455016124,0.30332109,606.72,605.54,0.33028371]
[1743455016425,0.30332109,606.71,605.54,0.33028371]
[1743455016625,0.28727448,606.71,605.54,0.33028371]
[1743455016826,0.30332109,606.7,605.54,0.33028371]
[1743455017327,0.30335657,606.69,605.54,0.33028371]
[1743455017527,0.30335657,606.7,605.54,0.33028371]
[1743455017727,0.30335657,606.69,605.54,0.33028371]
[1743455017928,0.30335657,606.7,605.54,0.33028371]
[1743455018122,0.30335657,606.68,605.54,0.33028371]
[1743455018324,0.30335657,606.67,605.54,0.33028371]
[1743455018520,0.30335657,606.7,605.54,0.33028371]
[1743455018725,0.30335657,606.69,605.54,0.33028371]
[1743455018926,0.30335657,606.68,605.54,0.33028371]
[1743455019228,0.30335657,606.67,605.54,0.33028371]
[1743455019423,0.30335657,606.83,605.54,0.33028371]
[1743455019627,0.30335657,606.82,605.54,0.33028371]
[1743455019830,0.28725433,606.66,605.54,0.33028371]
[1743455020128,0.30335657,606.65,605.54,0.33028371]
[1743455020326,0.59061327,606.65,605.54,0.33028371]
[1743455020622,0.30335992,606.64,605.54,0.33028371]
[1743455021827,0.30335992,606.63,605.54,0.33028371]
[1743455022129,0.30335992,606.62,605.54,0.33028371]
[1743455022329,0.30335992,606.61,605.54,0.33028371]
[1743455022525,0.30335992,606.6,605.54,0.33028371]
[1743455023527,0.287265,606.61,605.54,0.33028371]
[1743455023828,0.30335468,606.6,605.54,0.33028371]
[1743455025630,0.59061256,606.59,605.54,0.33028371]
[1743455025830,0.30335468,606.58,605.54,0.33028371]
[1743455028430,0.30335468,606.83,605.54,0.33028371]
[1743455028628,0.28731718,606.57,605.54,0.33028371]
[1743455028828,0.30335468,606.56,605.54,0.33028371]
[1743455029031,0.32958702,606.82,605.54,0.33028371]
[1743455029032,0.30335468,606.81,605.54,0.33028371]
[1743455029228,0.63295257,606.8,605.54,0.33028371]
[1743455029433,1.254,606.84,605.54,0.33028371]
[1743455029434,0.632958,606.79,605.54,0.33028371]
[1743455029633,0.63296343,606.78,605.54,0.33028371]
[1743455029834,0.63299688,606.77,605.54,0.33028371]
[1743455030133,0.3033827,606.76,605.54,0.33028371]
[1743455030334,0.3033827,606.75,605.54,0.33028371]
[1743455030531,0.3033827,606.74,605.54,0.33028371]
[1743455030735,0.32961418,606.77,605.54,0.33028371]
[1743455030736,0.3033827,606.73,605.54,0.33028371]
[1743455030935,0.3033827,606.72,605.54,0.33028371]
[1743455031233,0.3033827,606.71,605.54,0.33028371]
[1743455031435,0.3033827,606.7,605.54,0.33028371]
[1743455031733,0.3033827,606.69,605.54,0.33028371]
[1743455031929,0.3033827,606.68,605.54,0.33028371]
[1743455032127,0.28729108,606.71,605.54,0.33028371]
[1743455032128,0.3033827,606.67,605.54,0.33028371]
[1743455032328,0.3033827,606.66,605.54,0.33028371]
[1743455032534,0.28729108,606.71,605.54,0.33028371]
[1743455032535,0.3033827,606.65,605.54,0.33028371]
[1743455032734,0.3033827,606.64,605.54,0.33028371]
[1743455033030,0.30340789,606.63,605.54,0.33028371]
[1743455033335,0.30340789,606.62,605.54,0.33028371]
[1743455033534,0.30340789,606.61,605.54,0.33028371]
[1743455033733,0.30340789,606.6,605.54,0.33028371]
[1743455033930,0.30340789,606.59,605.54,0.33028371]
[1743455034135,0.30340789,606.58,605.54,0.33028371]
[1743455034330,0.30340789,606.7,605.54,0.33028371]
[1743455034635,0.30340761,606.69,605.54,0.33028371]
[1743455034836,0.30340761,606.68,605.54,0.33028371]
[1743455035030,0.30340761,606.67,605.54,0.33028371]
[1743455035238,0.30340761,606.66,605.54,0.33028371]
[1743455035429,0.30340761,606.65,605.54,0.33028371]
[1743455035635,0.30340761,606.64,605.54,0.33028371]
[1743455035838,0.30340761,606.63,605.54,0.33028371]
[1743455036131,0.30340892,606.62,605.54,0.33028371]
[1743455036337,0.30340892,606.61,605.54,0.33028371]
[1743455036536,0.30340892,606.6,605.54,0.33028371]
[1743455036837,0.30340892,606.59,605.54,0.33028371]
[1743455037029,0.30340892,606.58,605.54,0.33028371]
[1743455037230,0.30340892,606.57,605.54,0.33028371]
[1743455037439,0.30340892,606.56,605.54,0.33028371]
[1743455037630,0.30340892,606.55,605.54,0.33028371]
[1743455037834,0.30340892,606.54,605.54,0.33028371]
[1743455038031,0.30340892,606.53,605.54,0.33028371]
[1743455038233,0.30340892,606.52,605.54,0.33028371]
[1743455038432,0.30340892,606.51,605.54,0.33028371]
[1743455038635,0.30340892,606.5,605.54,0.33028371]